{"text_format":"3","workbook":"xlsx","n_sheets":2,"sheets":["Жабдықтар тізімі","Параметрлер"],"not_rendered":{"defined_names":4},"read":"whole","date_system":"1900"}

{"sheet":"Жабдықтар тізімі","index":0,"n_rows":35,"n_cols":6,"rows_kept":35,"merged":[[0,1,2,2],[0,4,0,5]]}
[]
[{"$nulls":4},"Мынадан ескірек элементтерді бөлектеу:"]
[{"$nulls":4},4]
[]
[null,"ЖАБДЫҚ ИДЕНТИФИКАТОРЫ","ЭЛЕМЕНТ АТАУЫ","ТАҒАЙЫНДАЛҒАН","ШЫҒАРЫЛҒАН КҮНІ","ЭЛЕМЕНТТІҢ ЖАСЫ"]
[null,"ЭЛЕМЕНТ0001","үстел","1-қызметкер",{"$f":"TODAY()-25","v":"2012-10-14"},{"$f":"IF(tblEquipmentInventory[[#This Row],[ШЫҒАРЫЛҒАН КҮНІ]]<>\"\",TODAY()-tblEquipmentInventory[[#This Row],[ШЫҒАРЫЛҒАН КҮНІ]],\"\")","v":{"v":25,"d":"25 күн"}}]
[null,"ЭЛЕМЕНТ0002","лазерлік принтер","2-қызметкер",{"$f":"TODAY()-479","v":"2011-07-18"},{"$f":"IF(tblEquipmentInventory[[#This Row],[ШЫҒАРЫЛҒАН КҮНІ]]<>\"\",TODAY()-tblEquipmentInventory[[#This Row],[ШЫҒАРЫЛҒАН КҮНІ]],\"\")","v":{"v":479,"d":"479 күн"}}]
[null,"ЭЛЕМЕНТ0003","сканер","3-қызметкер",{"$f":"TODAY()-177","v":"2012-05-15"},{"$f":"IF(tblEquipmentInventory[[#This Row],[ШЫҒАРЫЛҒАН КҮНІ]]<>\"\",TODAY()-tblEquipmentInventory[[#This Row],[ШЫҒАРЫЛҒАН КҮНІ]],\"\")","v":{"v":177,"d":"177 күн"}}]
[null,"ЭЛЕМЕНТ0004","лазерлік принтер","7-қызметкер",{"$f":"TODAY()-18","v":"2012-10-21"},{"$f":"IF(tblEquipmentInventory[[#This Row],[ШЫҒАРЫЛҒАН КҮНІ]]<>\"\",TODAY()-tblEquipmentInventory[[#This Row],[ШЫҒАРЫЛҒАН КҮНІ]],\"\")","v":{"v":18,"d":"18 күн"}}]
[null,"ЭЛЕМЕНТ0005","кофе әзірлегіш","20-қызметкер",{"$f":"TODAY()-227","v":"2012-03-26"},{"$f":"IF(tblEquipmentInventory[[#This Row],[ШЫҒАРЫЛҒАН КҮНІ]]<>\"\",TODAY()-tblEquipmentInventory[[#This Row],[ШЫҒАРЫЛҒАН КҮНІ]],\"\")","v":{"v":227,"d":"227 күн"}}]
[null,"ЭЛЕМЕНТ0006","сканер","14-қызметкер",{"$f":"TODAY()-50","v":"2012-09-19"},{"$f":"IF(tblEquipmentInventory[[#This Row],[ШЫҒАРЫЛҒАН КҮНІ]]<>\"\",TODAY()-tblEquipmentInventory[[#This Row],[ШЫҒАРЫЛҒАН КҮНІ]],\"\")","v":{"v":50,"d":"50 күн"}}]
[null,"ЭЛЕМЕНТ0007","кесте","4-қызметкер",{"$f":"TODAY()-120","v":"2012-07-11"},{"$f":"IF(tblEquipmentInventory[[#This Row],[ШЫҒАРЫЛҒАН КҮНІ]]<>\"\",TODAY()-tblEquipmentInventory[[#This Row],[ШЫҒАРЫЛҒАН КҮНІ]],\"\")","v":{"v":120,"d":"120 күн"}}]
[null,"ЭЛЕМЕНТ0008","көшіру машинасы","12-қызметкер",{"$f":"TODAY()-499","v":"2011-06-28"},{"$f":"IF(tblEquipmentInventory[[#This Row],[ШЫҒАРЫЛҒАН КҮНІ]]<>\"\",TODAY()-tblEquipmentInventory[[#This Row],[ШЫҒАРЫЛҒАН КҮНІ]],\"\")","v":{"v":499,"d":"499 күн"}}]
[null,"ЭЛЕМЕНТ0009","қосымша монитор","8-қызметкер",{"$f":"TODAY()-30","v":"2012-10-09"},{"$f":"IF(tblEquipmentInventory[[#This Row],[ШЫҒАРЫЛҒАН КҮНІ]]<>\"\",TODAY()-tblEquipmentInventory[[#This Row],[ШЫҒАРЫЛҒАН КҮНІ]],\"\")","v":{"v":30,"d":"30 күн"}}]
[null,"ЭЛЕМЕНТ0010","тақта","19-қызметкер",{"$f":"TODAY()-50","v":"2012-09-19"},{"$f":"IF(tblEquipmentInventory[[#This Row],[ШЫҒАРЫЛҒАН КҮНІ]]<>\"\",TODAY()-tblEquipmentInventory[[#This Row],[ШЫҒАРЫЛҒАН КҮНІ]],\"\")","v":{"v":50,"d":"50 күн"}}]
[null,"ЭЛЕМЕНТ0011","көшіру машинасы","12-қызметкер",{"$f":"TODAY()-450","v":"2011-08-16"},{"$f":"IF(tblEquipmentInventory[[#This Row],[ШЫҒАРЫЛҒАН КҮНІ]]<>\"\",TODAY()-tblEquipmentInventory[[#This Row],[ШЫҒАРЫЛҒАН КҮНІ]],\"\")","v":{"v":450,"d":"450 күн"}}]
[null,"ЭЛЕМЕНТ0012","кеңсе жабдықтары","18-қызметкер",{"$f":"TODAY()-420","v":"2011-09-15"},{"$f":"IF(tblEquipmentInventory[[#This Row],[ШЫҒАРЫЛҒАН КҮНІ]]<>\"\",TODAY()-tblEquipmentInventory[[#This Row],[ШЫҒАРЫЛҒАН КҮНІ]],\"\")","v":{"v":420,"d":"420 күн"}}]
[null,"ЭЛЕМЕНТ0013","қосымша монитор","8-қызметкер",{"$f":"TODAY()-250","v":"2012-03-03"},{"$f":"IF(tblEquipmentInventory[[#This Row],[ШЫҒАРЫЛҒАН КҮНІ]]<>\"\",TODAY()-tblEquipmentInventory[[#This Row],[ШЫҒАРЫЛҒАН КҮНІ]],\"\")","v":{"v":250,"d":"250 күн"}}]
[null,"ЭЛЕМЕНТ0014","кофе әзірлегіш","9-қызметкер",{"$f":"TODAY()-45","v":"2012-09-24"},{"$f":"IF(tblEquipmentInventory[[#This Row],[ШЫҒАРЫЛҒАН КҮНІ]]<>\"\",TODAY()-tblEquipmentInventory[[#This Row],[ШЫҒАРЫЛҒАН КҮНІ]],\"\")","v":{"v":45,"d":"45 күн"}}]
[null,"ЭЛЕМЕНТ0015","кеңсе жабдықтары","13-қызметкер",{"$f":"TODAY()-502","v":"2011-06-25"},{"$f":"IF(tblEquipmentInventory[[#This Row],[ШЫҒАРЫЛҒАН КҮНІ]]<>\"\",TODAY()-tblEquipmentInventory[[#This Row],[ШЫҒАРЫЛҒАН КҮНІ]],\"\")","v":{"v":502,"d":"502 күн"}}]
[null,"ЭЛЕМЕНТ0016","сканер","1-қызметкер",{"$f":"TODAY()-350","v":"2011-11-24"},{"$f":"IF(tblEquipmentInventory[[#This Row],[ШЫҒАРЫЛҒАН КҮНІ]]<>\"\",TODAY()-tblEquipmentInventory[[#This Row],[ШЫҒАРЫЛҒАН КҮНІ]],\"\")","v":{"v":350,"d":"350 күн"}}]
[null,"ЭЛЕМЕНТ0017","көшіру машинасы","19-қызметкер",{"$f":"TODAY()-125","v":"2012-07-06"},{"$f":"IF(tblEquipmentInventory[[#This Row],[ШЫҒАРЫЛҒАН КҮНІ]]<>\"\",TODAY()-tblEquipmentInventory[[#This Row],[ШЫҒАРЫЛҒАН КҮНІ]],\"\")","v":{"v":125,"d":"125 күн"}}]
[null,"ЭЛЕМЕНТ0018","тақта","15-қызметкер",{"$f":"TODAY()-90","v":"2012-08-10"},{"$f":"IF(tblEquipmentInventory[[#This Row],[ШЫҒАРЫЛҒАН КҮНІ]]<>\"\",TODAY()-tblEquipmentInventory[[#This Row],[ШЫҒАРЫЛҒАН КҮНІ]],\"\")","v":{"v":90,"d":"90 күн"}}]
[null,"ЭЛЕМЕНТ0019","үстел","16-қызметкер",{"$f":"TODAY()-730","v":"2010-11-09"},{"$f":"IF(tblEquipmentInventory[[#This Row],[ШЫҒАРЫЛҒАН КҮНІ]]<>\"\",TODAY()-tblEquipmentInventory[[#This Row],[ШЫҒАРЫЛҒАН КҮНІ]],\"\")","v":{"v":730,"d":"730 күн"}}]
[null,"ЭЛЕМЕНТ0020","шаң шүртетін шүберек (1 жинақ)","3-қызметкер",{"$f":"TODAY()-540","v":"2011-05-18"},{"$f":"IF(tblEquipmentInventory[[#This Row],[ШЫҒАРЫЛҒАН КҮНІ]]<>\"\",TODAY()-tblEquipmentInventory[[#This Row],[ШЫҒАРЫЛҒАН КҮНІ]],\"\")","v":{"v":540,"d":"540 күн"}}]
[null,"ЭЛЕМЕНТ0021","лазерлік принтер","7-қызметкер",{"$f":"TODAY()-18","v":"2012-10-21"},{"$f":"IF(tblEquipmentInventory[[#This Row],[ШЫҒАРЫЛҒАН КҮНІ]]<>\"\",TODAY()-tblEquipmentInventory[[#This Row],[ШЫҒАРЫЛҒАН КҮНІ]],\"\")","v":{"v":18,"d":"18 күн"}}]
[null,"ЭЛЕМЕНТ0022","ноутбук","8-қызметкер",{"$f":"TODAY()-283","v":"2012-01-30"},{"$f":"IF(tblEquipmentInventory[[#This Row],[ШЫҒАРЫЛҒАН КҮНІ]]<>\"\",TODAY()-tblEquipmentInventory[[#This Row],[ШЫҒАРЫЛҒАН КҮНІ]],\"\")","v":{"v":283,"d":"283 күн"}}]
[null,"ЭЛЕМЕНТ0023","кеңсе жабдықтары","9-қызметкер",{"$f":"TODAY()-479","v":"2011-07-18"},{"$f":"IF(tblEquipmentInventory[[#This Row],[ШЫҒАРЫЛҒАН КҮНІ]]<>\"\",TODAY()-tblEquipmentInventory[[#This Row],[ШЫҒАРЫЛҒАН КҮНІ]],\"\")","v":{"v":479,"d":"479 күн"}}]
[null,"ЭЛЕМЕНТ0024","лазерлік принтер","19-қызметкер",{"$f":"TODAY()-355","v":"2011-11-19"},{"$f":"IF(tblEquipmentInventory[[#This Row],[ШЫҒАРЫЛҒАН КҮНІ]]<>\"\",TODAY()-tblEquipmentInventory[[#This Row],[ШЫҒАРЫЛҒАН КҮНІ]],\"\")","v":{"v":355,"d":"355 күн"}}]
[null,"ЭЛЕМЕНТ0025","кесте","7-қызметкер",{"$f":"TODAY()-28","v":"2012-10-11"},{"$f":"IF(tblEquipmentInventory[[#This Row],[ШЫҒАРЫЛҒАН КҮНІ]]<>\"\",TODAY()-tblEquipmentInventory[[#This Row],[ШЫҒАРЫЛҒАН КҮНІ]],\"\")","v":{"v":28,"d":"28 күн"}}]
[null,"ЭЛЕМЕНТ0026","тақта","8-қызметкер",{"$f":"TODAY()-28","v":"2012-10-11"},{"$f":"IF(tblEquipmentInventory[[#This Row],[ШЫҒАРЫЛҒАН КҮНІ]]<>\"\",TODAY()-tblEquipmentInventory[[#This Row],[ШЫҒАРЫЛҒАН КҮНІ]],\"\")","v":{"v":28,"d":"28 күн"}}]
[null,"ЭЛЕМЕНТ0027","ноутбук","19-қызметкер",{"$f":"TODAY()-736","v":"2010-11-03"},{"$f":"IF(tblEquipmentInventory[[#This Row],[ШЫҒАРЫЛҒАН КҮНІ]]<>\"\",TODAY()-tblEquipmentInventory[[#This Row],[ШЫҒАРЫЛҒАН КҮНІ]],\"\")","v":{"v":736,"d":"736 күн"}}]
[null,"ЭЛЕМЕНТ0028","кесте","12-қызметкер",{"$f":"TODAY()-68","v":"2012-09-01"},{"$f":"IF(tblEquipmentInventory[[#This Row],[ШЫҒАРЫЛҒАН КҮНІ]]<>\"\",TODAY()-tblEquipmentInventory[[#This Row],[ШЫҒАРЫЛҒАН КҮНІ]],\"\")","v":{"v":68,"d":"68 күн"}}]
[null,"ЭЛЕМЕНТ0029","сканер","14-қызметкер",{"$f":"TODAY()-67","v":"2012-09-02"},{"$f":"IF(tblEquipmentInventory[[#This Row],[ШЫҒАРЫЛҒАН КҮНІ]]<>\"\",TODAY()-tblEquipmentInventory[[#This Row],[ШЫҒАРЫЛҒАН КҮНІ]],\"\")","v":{"v":67,"d":"67 күн"}}]
[null,"ЭЛЕМЕНТ0030","кофе әзірлегіш","3-қызметкер",{"$f":"TODAY()-149","v":"2012-06-12"},{"$f":"IF(tblEquipmentInventory[[#This Row],[ШЫҒАРЫЛҒАН КҮНІ]]<>\"\",TODAY()-tblEquipmentInventory[[#This Row],[ШЫҒАРЫЛҒАН КҮНІ]],\"\")","v":{"v":149,"d":"149 күн"}}]

{"sheet":"Параметрлер","index":1,"n_rows":23,"n_cols":4,"rows_kept":23}
[]
[]
[null,"ҚЫЗМЕТКЕРЛЕР",null,"ЭЛЕМЕНТТЕР"]
[null,"1-қызметкер",null,"үстел"]
[null,"2-қызметкер",null,"кофе әзірлегіш"]
[null,"3-қызметкер",null,"көшіру машинасы"]
[null,"4-қызметкер",null,"жұмыс үстелі компьютері"]
[null,"5-қызметкер",null,"шаң шүртетін шүберек (1 жинақ)"]
[null,"6-қызметкер",null,"қосымша монитор"]
[null,"7-қызметкер",null,"ағындық принтер"]
[null,"8-қызметкер",null,"ноутбук"]
[null,"9-қызметкер",null,"лазерлік принтер"]
[null,"10-қызметкер",null,"маркерлер (3 жинақ)"]
[null,"11-қызметкер",null,"сканер"]
[null,"12-қызметкер",null,"кеңсе жабдықтары"]
[null,"13-қызметкер",null,"кесте"]
[null,"14-қызметкер",null,"USB жад"]
[null,"15-қызметкер",null,"тақта"]
[null,"16-қызметкер"]
[null,"17-қызметкер"]
[null,"18-қызметкер"]
[null,"19-қызметкер"]
[null,"20-қызметкер"]